fUST/lending_fUST_20250320
["ID","MTS","AMOUNT","RATE_DAILY","PERIOD"]
[356411589,1742418632979,-12266.01058129,0.00037417,7]
[356411590,1742418632989,-168.54,0.000375,7]
[356411591,1742418632999,-155.077555,0.00037543,3]
[356411592,1742418633008,-12266.01058129,0.00038072,8]
[356411593,1742418633017,-148105.845039,0.00038372,3]
[356411594,1742418633028,-500.0,0.00038373,5]
[356411595,1742418633037,-500.0,0.00038373,5]
[356411596,1742418633046,-500.0,0.00038373,5]
[356411597,1742418633056,-500.0,0.00038373,5]
[356411598,1742418633066,-500.0,0.00038373,5]
[356411599,1742418633075,-500.0,0.00038373,5]
[356411600,1742418633085,-500.0,0.00038373,5]
[356411601,1742418633095,-1586.11,0.00038382,120]
[356411602,1742418633105,-12266.01058129,0.00038728,8]
[356411603,1742418633114,-12266.01058129,0.00039383,8]
[356411604,1742418633124,-724.43,0.0004,7]
[356411605,1742418633134,-12266.01058129,0.00040038,8]
[356411606,1742418633144,-500.0,0.00040144,120]
[356411607,1742418633154,-500.0,0.00040144,120]
[356411608,1742418633164,-1001.57848927,0.00040144,5]
[356411609,1742418633174,-148105.845039,0.00040683,3]
[356411610,1742418633184,-12266.01058129,0.00040693,8]
[356411611,1742418633194,-500.0,0.00041211,2]
[356411612,1742418633204,-168.54,0.000413,30]
[356411613,1742418633214,-12266.01058129,0.00041348,9]
[356411614,1742418633224,-1586.11,0.00041368,120]
[356411615,1742418633234,-627.0,0.000417,30]
[356411616,1742418633243,-12266.01058129,0.00042003,9]
[356411617,1742418633253,-461.37,0.000422,14]
[356411618,1742418633263,-264.78777497,0.000422,10]
[356411619,1742418633274,-1000.0,0.00042246,10]
[356411620,1742418633283,-1000.0,0.00042246,10]
[356411621,1742418633292,-1000.0,0.00042246,10]
[356411622,1742418633303,-1737.56844384,0.00042265,120]
[356411623,1742418633312,-700.0,0.0004242,60]
[356411624,1742418633322,-12266.01058129,0.00042659,9]
[356411625,1742418633331,-160.0,0.00042669,3]
[356411626,1742418633341,-417.74434587,0.00042669,3]
[356411627,1742418633351,-500.0,0.00042673,10]
[356411628,1742418633360,-500.0,0.00042673,10]
[356411629,1742418633370,-1566.9354771,0.00042679,4]
[356411630,1742418633379,-500.0,0.000427,7]
[356411631,1742418633390,-700.0,0.00042968,60]
[356411632,1742418633400,-12266.01058129,0.00043314,9]
[356411633,1742418633412,-765.46997643,0.0004346,2]
[356411634,1742418633421,-500.0,0.00043473,5]
[356411635,1742418633431,-160.0,0.00043496,3]
[356411636,1742418633442,-700.0,0.00043516,60]
[356411637,1742418633451,-765.46997643,0.00043739,2]
[356411638,1742418633461,-1586.11,0.00043834,120]
[356411639,1742418633470,-1000.0,0.00043852,10]
[356411640,1742418633479,-500.0,0.000439,10]
[356411641,1742418633489,-168.54,0.000439,30]
[356411642,1742418633498,-12266.01058129,0.00043969,9]
[356411643,1742418633508,-151.0,0.00043999,2]
[356411644,1742418633518,-27771.26509969,0.00044,120]
[356411645,1742418633527,-700.0,0.00044064,120]
[356411646,1742418633537,-700.0,0.00044338,120]
[356411647,1742418633547,-780.12325266,0.0004443,91]
[356411648,1742418633557,-780.12325266,0.0004453,96]
[356411649,1742418633567,-700.0,0.00044612,120]
[356411650,1742418633576,-12266.01058129,0.00044624,10]
[356411651,1742418633586,-780.12325266,0.0004463,96]
[356411652,1742418633595,-155.077555,0.0004466,2]
[356411653,1742418633606,-150.0,0.000447,120]
[356411654,1742418633616,-151.84,0.000447,120]
[356411655,1742418633626,-780.12325266,0.0004473,92]
[356411656,1742418633635,-1000.0,0.00044763,2]
[356411657,1742418633645,-10000.0,0.00044763,2]
[356411658,1742418633655,-324.08200522,0.00044773,10]
[356411659,1742418633665,-500.0,0.00044773,7]
[356411660,1742418633675,-500.0,0.00044773,10]
[356411661,1742418633684,-500.0,0.00044773,10]
[356411662,1742418633693,-500.0,0.00044773,10]
[356411663,1742418633703,-500.0,0.00044773,10]
[356411664,1742418633712,-222000.0,0.0004479,2]
[356411665,1742418633721,-216.10343862,0.00044811,14]
[356411666,1742418633731,-10000.0,0.00044818,2]
[356411667,1742418633740,-780.12325266,0.0004483,93]
[356411668,1742418633749,-500.0,0.00044873,10]
[356411669,1742418633758,-500.0,0.00044873,10]
[356411670,1742418633767,-500.0,0.00044873,10]
[356411671,1742418633778,-500.0,0.00044873,10]
[356411672,1742418633787,-500.0,0.00044873,10]
[356411673,1742418633797,-500.0,0.00044873,10]
[356411674,1742418633807,-500.0,0.00044873,10]
[356411675,1742418633817,-10000.0,0.00044873,2]
[356411676,1742418633826,-700.0,0.00044886,120]
[356411677,1742418633836,-1586.11,0.00044889,120]
[356411678,1742418633845,-1586.11,0.00044889,120]
[356411679,1742418633855,-1586.11,0.00044889,120]
[356411680,1742418633864,-1586.11,0.00044889,120]
[356411681,1742418633874,-1586.11,0.00044899,120]
[356411682,1742418633883,-1586.11,0.00044899,120]
[356411683,1742418633893,-1586.11,0.00044899,120]
[356411684,1742418633903,-1586.11,0.00044899,120]
[356411685,1742418633911,-1586.11,0.00044899,120]
[356411686,1742418633920,-1586.11,0.00044899,120]
[356411687,1742418633930,-1586.11,0.00044899,120]
[356411688,1742418633939,-1586.11,0.00044899,120]
[356411689,1742418633949,-1586.11,0.00044899,120]
[356411690,1742418633959,-1586.11,0.00044899,120]
[356411691,1742418633968,-9137.68914552,0.000449,120]
[356411692,1742418633978,-50000.0,0.000449,120]
[356411693,1742418633987,-50000.0,0.000449,120]
[356411694,1742418633997,-50000.0,0.000449,120]
[356411695,1742418634006,-50000.0,0.000449,120]
[356411696,1742418634015,-5000.0,0.000449,120]
[356411697,1742418634024,-5000.0,0.000449,120]
[356411698,1742418634034,-5000.0,0.000449,120]
[356411699,1742418634043,-260.8,0.000449,14]
[356411700,1742418634052,-500.0,0.00044927,16]
[356411701,1742418634062,-10000.0,0.00044928,2]
[356411702,1742418634071,-780.12325266,0.0004493,100]
[356411703,1742418634081,-203.0,0.0004494,30]
[356411704,1742418634091,-150.0,0.00044973,10]
[356411705,1742418634101,-10000.0,0.00044983,2]
[356411706,1742418634110,-242.32721037,0.00044999,30]
[356411707,1742418634119,-1000.0,0.00044999,120]
[356411708,1742418634128,-1586.11,0.00044999,120]
[356411709,1742418634138,-1586.11,0.00044999,120]
[356411710,1742418634147,-1586.11,0.00044999,120]
[356411711,1742418634156,-1586.11,0.00044999,120]
[356411712,1742418634165,-1586.11,0.00044999,120]
[356411713,1742418634175,-1586.11,0.00044999,120]
[356411714,1742418634186,-1586.27,0.00044999,120]
[356411715,1742418634195,-10000.0,0.00045,45]
[356411716,1742418634205,-2000.0,0.00045,30]
[356411717,1742418634214,-106945.61591843,0.00045,120]
[356411718,1742418634224,-384.25766116,0.00045,120]
[356411719,1742418634233,-2250.0,0.00045,120]
[356411720,1742418634243,-2000.0,0.00045,120]
[356411721,1742418634253,-200.0,0.00045,120]
[356411722,1742418634263,-1300.0,0.00045,30]
[356411723,1742418634273,-243695.49740435,0.00045,30]
[356411724,1742418634283,-9226.14,0.00045,120]
[356411725,1742418634293,-8684.26542504,0.00045,4]
[356411726,1742418634303,-5000.0,0.00045,120]
[356411727,1742418634312,-8047.0,0.00045,120]
[356411728,1742418634322,-34264.58295872,0.00045,120]
[356411729,1742418634331,-752.52773742,0.00045,30]
[356411730,1742418634341,-50000.0,0.00045,120]
[356411731,1742418634351,-15499.88259164,0.00045,120]
[356411732,1742418634360,-10364.32845869,0.00045,120]
[356411733,1742418634369,-163.5852544,0.00045,120]
[356411734,1742418634379,-11464.0,0.00045,120]
[356411735,1742418634388,-971.0,0.00045,10]
[356411736,1742418634400,-151.0,0.00045,120]
[356411737,1742418634411,-151.0,0.00045,120]
[356411738,1742418634420,-1000.0,0.00045,60]
[356411739,1742418634430,-73040.44053456,0.00045,10]
[356411740,1742418634441,-2000.0,0.00045,120]
[356411741,1742418634451,-502.07647466,0.00045,31]
[356411742,1742418634460,-13657.78828703,0.00045,2]
[356411743,1742418634476,-64995.38,0.00045,120]
[356411744,1742418634491,-15000.0,0.00045,120]
[356411745,1742418634502,-21142.02378002,0.00045,12]
[356411746,1742418634512,-500.0,0.00045,30]
[356411747,1742418634522,-500.0,0.00045,30]
[356411748,1742418634532,-150.3,0.00045,30]
[356411749,1742418634542,-151.0,0.00045,120]
[356411750,1742418634552,-500.0,0.00045027,30]
[356411751,1742418634562,-500.0,0.00045027,30]
[356411752,1742418634572,-150.3,0.00045027,30]
[356411753,1742418634581,-780.12325266,0.0004503,99]
[356411754,1742418634591,-500.0,0.00045055,30]
[356411755,1742418634619,-500.0,0.00045055,30]
[356411756,1742418634636,-246.04548302,0.00045055,30]
[356411757,1742418634653,-500.0,0.00045064,16]
[356411758,1742418634666,-200.0,0.00045078,120]
[356411759,1742418634680,-500.0,0.00045082,30]
[356411760,1742418634695,-500.0,0.00045082,30]
[356411761,1742418634710,-829.68,0.000451,120]
[356411762,1742418634725,-50000.0,0.000451,120]
[356411763,1742418634740,-500.0,0.0004511,30]
[356411764,1742418634755,-500.0,0.0004511,30]
[356411765,1742418634770,-780.12325266,0.0004513,95]
[356411766,1742418634786,-500.0,0.00045137,30]
[356411767,1742418634800,-500.0,0.00045137,30]
[356411768,1742418634815,-200.0,0.00045148,120]
[356411769,1742418634831,-500.0,0.00045164,30]
[356411770,1742418634845,-500.0,0.00045164,30]
[356411771,1742418634861,-500.0,0.00045192,30]
[356411772,1742418634874,-200.0,0.00045195,120]
[356411773,1742418634885,-200.0,0.00045197,120]
[356411774,1742418634898,-480.71652577,0.000452,120]
[356411775,1742418634910,-10010.0,0.000452,60]
[356411776,1742418634924,-5000.0,0.000452,120]
[356411777,1742418634937,-168.54,0.000452,30]
[356411778,1742418634951,-542.48,0.00045205,7]
[356411779,1742418634965,-500.0,0.00045205,10]
[356411780,1742418634980,-200.0,0.00045212,120]
[356411781,1742418634996,-500.0,0.00045219,30]
[356411782,1742418635009,-200.0,0.00045229,120]
[356411783,1742418635021,-780.12325266,0.0004523,91]
[356411784,1742418635032,-500.0,0.00045247,30]
[356411785,1742418635044,-500.0,0.00045274,30]
[356411786,1742418635058,-12266.01058129,0.00045279,10]
[356411787,1742418635074,-3382.43774116,0.0004529,4]
[356411788,1742418635088,-857.46506098,0.000453,7]
[356411789,1742418635100,-183.52,0.000453,39]
[356411790,1742418635113,-500.0,0.00045301,30]
[356411791,1742418635128,-500.0,0.00045329,30]
[356411792,1742418635140,-780.12325266,0.0004533,100]
[356411793,1742418635152,-500.0,0.00045356,30]
[356411794,1742418635164,-183005.506309,0.0004537,60]
[356411795,1742418635178,-500.0,0.00045384,30]
[356411796,1742418635190,-10000.0,0.00045398,30]
[356411797,1742418635203,-1651.94840748,0.00045398,30]
[356411798,1742418635216,-2000.0,0.000454,38]
[356411799,1742418635230,-151.0,0.000454,120]
[356411800,1742418635244,-484.608719,0.000454,30]
[356411801,1742418635258,-484.608719,0.000454,30]
[356411802,1742418635272,-278.426067,0.000454,120]
[356411803,1742418635292,-151.0,0.000454,120]
[356411804,1742418635305,-151.0,0.000454,120]
[356411805,1742418635318,-456341.52867584,0.000454,120]
[356411806,1742418635331,-500.0,0.00045411,30]
[356411807,1742418635344,-780.12325266,0.0004543,97]
[356411808,1742418635356,-700.0,0.00045434,120]
[356411809,1742418635370,-200.0,0.00045437,120]
[356411810,1742418635383,-812.0,0.00045438,30]
[356411811,1742418635398,-200.0,0.00045456,120]
[356411812,1742418635412,-4300.91200699,0.0004546,30]
[356411813,1742418635424,-200.0,0.00045467,30]
[356411814,1742418635438,-168.493,0.0004547,120]
[356411815,1742418635450,-253.28325,0.0004547,120]
[356411816,1742418635463,-379.52075,0.0004547,120]
[356411817,1742418635477,-200.0,0.00045478,120]
[356411818,1742418635489,-542.48,0.00045479,8]
[356411819,1742418635501,-200.0,0.00045499,120]
[356411820,1742418635513,-2000.0,0.000455,30]
[356411821,1742418635525,-500.0,0.000455,120]
[356411822,1742418635537,-500.0,0.000455,120]
[356411823,1742418635549,-500.0,0.000455,120]
[356411824,1742418635561,-500.0,0.000455,120]
[356411825,1742418635572,-1000.0,0.000455,120]
[356411826,1742418635584,-2000.0,0.000455,120]
[356411827,1742418635596,-500.0,0.000455,120]
[356411828,1742418635608,-500.0,0.000455,120]
[356411829,1742418635620,-500.0,0.000455,120]
[356411830,1742418635633,-500.0,0.000455,120]
[356411831,1742418635644,-1000.0,0.000455,120]
[356411832,1742418635656,-2000.0,0.000455,120]
[356411833,1742418635668,-715.2294664,0.000455,30]
[356411834,1742418635680,-5000.0,0.000455,120]
[356411835,1742418635692,-250.06373056,0.00045521,10]
[356411836,1742418635703,-200.0,0.00045524,120]
[356411837,1742418635716,-780.12325266,0.0004553,96]
[356411838,1742418635729,-200.0,0.00045531,120]
[356411839,1742418635741,-780.12325266,0.0004563,100]
[356411840,1742418635754,-200.0,0.00045651,120]
[356411841,1742418635767,-200.0,0.00045675,120]
[356411842,1742418635779,-200.0,0.00045678,120]
[356411843,1742418635791,-200.0,0.00045719,120]
[356411844,1742418635803,-780.12325266,0.0004573,100]
[356411845,1742418635815,-542.48,0.00045753,9]
[356411846,1742418635827,-1000.0,0.00045753,10]
[356411847,1742418635838,-2891.29371124,0.0004578,2]
[356411848,1742418635849,-780.12325266,0.0004583,91]
[356411849,1742418635860,-219.71894518,0.0004588,30]
[356411850,1742418635871,-153.07410612,0.000459,120]
[356411851,1742418635883,-10368.49974071,0.000459,120]
[356411852,1742418635894,-1958.76571724,0.000459,120]
[356411853,1742418635905,-200.0,0.00045921,120]
[356411854,1742418635916,-780.12325266,0.0004593,100]
[356411855,1742418635927,-12266.01058129,0.00045934,10]
[356411856,1742418635938,-200.0,0.00045972,120]
[356411857,1742418635949,-200.0,0.00045976,120]
[356411858,1742418635960,-700.0,0.00045982,120]
[356411859,1742418635971,-10064.1793627,0.00045999,60]
[356411860,1742418635982,-2000.0,0.00046,30]
[356411861,1742418635993,-175.65988994,0.00046,120]
[356411862,1742418636004,-1110.48662659,0.00046,120]
[356411863,1742418636015,-200.0,0.00046,120]
[356411864,1742418636027,-60061.0,0.00046,120]
[356411865,1742418636038,-162.04696117,0.00046,120]
[356411866,1742418636049,-1741.25450571,0.00046,120]
[356411867,1742418636060,-2560.63390754,0.00046,120]
[356411868,1742418636071,-5000.0,0.00046,120]
[356411869,1742418636084,-542.48,0.00046027,10]
[356411870,1742418636096,-780.12325266,0.0004603,91]
[356411871,1742418636108,-1000.0,0.000461,120]
[356411872,1742418636120,-780.12325266,0.0004613,92]
[356411873,1742418636132,-200.0,0.00046131,120]
[356411874,1742418636144,-1000.0,0.00046132,2]
[356411875,1742418636156,-150.0,0.000462,120]
[356411876,1742418636168,-780.12325266,0.0004623,96]
[356411877,1742418636179,-203.0,0.0004625,30]
[356411878,1742418636191,-500.0,0.0004625,60]
[356411879,1742418636202,-500.0,0.0004625,60]
[356411880,1742418636214,-500.0,0.0004625,60]
[356411881,1742418636226,-200.0,0.00046255,120]
[356411882,1742418636237,-168.54,0.000463,30]
[356411883,1742418636248,-542.48,0.00046301,11]
[356411884,1742418636259,-401.46585196,0.00046301,10]
[356411885,1742418636271,-780.12325266,0.0004633,92]
[356411886,1742418636285,-200.0,0.00046358,120]
[356411887,1742418636296,-155.077555,0.00046366,30]
[356411888,1742418636307,-200.0,0.00046367,120]
[356411889,1742418636319,-83391.84778804,0.000464,120]
[356411890,1742418636330,-2000.0,0.000464,41]
[356411891,1742418636341,-155.077555,0.00046402,30]
[356411892,1742418636353,-780.12325266,0.0004643,98]
[356411893,1742418636364,-44855.99783424,0.0004644,30]
[356411894,1742418637371,-375857.39591916,0.0004644,30]
[356411895,1742418637383,-3135.4846198,0.0004644,30]
[356411896,1742418637401,-342273.00250607,0.0004644,30]
[356411903,1742418637854,-232.10736,0.00027,120]
[356411904,1742418637864,-9325.56202559,0.00045038,2]
[356411905,1742418637877,-674.43797441,0.00045038,2]
[356411906,1742418637887,-120.23213072,0.00045093,2]
[356411907,1742418637909,-181.76786928,0.00045093,2]
[356411908,1742418637919,-9998.0,0.00045148,2]
[356411909,1742418637929,-82196.29068548,0.0004644,30]
[356411910,1742418637941,-426.4284,0.0004644,30]
[356411911,1742418637954,-6227.83261121,0.0004644,30]
[356411939,1742418640339,-1022.12947505,0.0004644,30]
[356411944,1742418643075,-236.05523,0.00027,120]
[356411945,1742418643085,-399.0,0.00028643,2]
[356411946,1742418643096,-303.602818,0.00028708,15]
[356411947,1742418643106,-399.0,0.00031643,2]
[356411948,1742418643116,-38672.52642107,0.0004644,30]
[356411949,1742418643141,-2745.94161863,0.0004644,30]
[356411950,1742418643152,-2499.275,0.0004644,30]
[356411951,1742418643169,-9445.57048334,0.0004644,30]
[356411952,1742418643180,-643.95837577,0.0004644,30]
[356411953,1742418643192,-528.1289233,0.0004644,30]
[356411970,1742418645942,-4312.15887578,0.0004644,30]
[356411972,1742418645954,-9771.89,0.0004644,30]
[356411974,1742418645965,-36605.57588848,0.0004644,30]
[356411976,1742418645976,-633.60000015,0.0004644,30]
[356411977,1742418646001,-38146.81236247,0.0004644,30]
[356411978,1742418646011,-151.0,0.0004644,120]
[356411979,1742418646021,-151.0,0.0004644,120]
[356411981,1742418646030,-484.608719,0.0004644,30]
[356411982,1742418646040,-484.608719,0.0004644,30]
[356411983,1742418646050,-151.0,0.0004644,120]
[356411984,1742418646059,-151.0,0.0004644,120]
[356411985,1742418646069,-500.0,0.00046473,10]
[356411986,1742418646079,-5000.0,0.000465,120]
[356411987,1742418646088,-2000.0,0.000465,30]
[356411988,1742418646098,-780.12325266,0.0004653,94]
[356411989,1742418646107,-700.0,0.0004653,120]
[356411990,1742418646116,-500.0,0.00046532,2]
[356411991,1742418646126,-200.0,0.00046568,120]
[356411992,1742418646135,-542.48,0.00046575,12]
[356411993,1742418646144,-150.0,0.00046575,10]
[356411994,1742418646154,-200.0,0.00046588,120]
[356411995,1742418646163,-119054.30272444,0.00046589,61]
[356411996,1742418646175,-769.3702,0.00046589,61]
[356411997,1742418646187,-113932.70752612,0.00046589,61]
[356411998,1742418646197,-47406.95871553,0.00046589,61]
[356411999,1742418646206,-12266.01058129,0.0004659,10]
[356412000,1742418646216,-780.12325266,0.0004663,95]
[356412001,1742418646225,-200.0,0.00046681,120]
[356412002,1742418646235,-1937.62249671,0.00046687,110]
[356412003,1742418646244,-27127.43,0.0004672,7]
[356412004,1742418646254,-780.12325266,0.0004673,94]
[356412005,1742418646263,-3268.789,0.000468,60]
[356412006,1742418646272,-100637.46082496,0.000468,120]
[356412007,1742418646282,-10073.0,0.000468,60]
[356412008,1742418646291,-200.0,0.00046803,120]
[356412009,1742418646300,-780.12325266,0.0004683,95]
[356412010,1742418646310,-2731.06271998,0.0004684,120]
[356412011,1742418646319,-542.48,0.00046849,13]
[356412012,1742418646328,-17264.9516461,0.00046908,120]
[356412013,1742418646338,-16901.42900171,0.00046913,120]
[356412014,1742418646347,-1684.08644806,0.00046915,120]
[356412019,1742419709869,277.98353559,0.0001,2]
[356412020,1742419720200,1000.0,0.0001,2]
[356412068,1742419832137,-425.99618592,0.00015701,2]
[356412069,1742419832146,-368.08277606,0.000238,2]
[356412070,1742419832155,-500.000001,0.0002438,2]
[356412071,1742419832165,-150.0,0.000249,2]
[356412072,1742419832175,-190.18366155,0.0002496,2]
[356412073,1742419832185,-814.3035433,0.000285,7]
[356412074,1742419832195,-500.0,0.00028899,120]
[356412075,1742419832205,-3227.81267827,0.000289,5]
[356412076,1742419832215,-600.0,0.00029317,2]
[356412077,1742419832224,-300.0,0.00029333,2]
[356412078,1742419832234,-24571.8149725,0.00029334,2]
[356412079,1742419832243,-622.2,0.00029372,2]
[356412080,1742419832252,-417.89091067,0.00029408,2]
[356412081,1742419832262,-1294.03659194,0.00029427,2]
[356412082,1742419832272,-3293.3257535,0.00029452,2]
[356412083,1742419832282,-193.69838805,0.00029454,2]
[356412084,1742419832291,-500.0,0.00029554,120]
[356412086,1742419832301,-500.0,0.00029554,120]
[356412087,1742419832310,-3227.81267817,0.00029555,5]
[356412088,1742419832319,-500.0,0.0003021,120]
[356412089,1742419832329,-3227.81267817,0.0003021,5]
[356412090,1742419832339,-2200.0,0.0003035,2]
[356412091,1742419832349,-240.24683501,0.00030407,7]
[356412092,1742419832359,-399.0,0.00030806,2]
[356412093,1742419832370,-500.0,0.00030865,120]
[356412094,1742419832379,-3227.81267817,0.00030866,5]
[356412095,1742419832389,-500.0,0.0003152,120]
[356412096,1742419832399,-500.0,0.0003152,120]
[356412097,1742419832409,-3227.81267817,0.00031521,6]
[356412098,1742419832418,-500.0,0.0003161,120]
[356412099,1742419832428,-420.0,0.00031636,2]
[356412100,1742419832439,-3227.81267817,0.00032176,6]
[356412101,1742419832449,-500.0,0.00032289,7]
[356412102,1742419832459,-223.43,0.0003283,120]
[356412103,1742419832469,-3227.81267817,0.00032831,6]
[356412104,1742419832479,-3227.81267817,0.00033486,6]
[356412105,1742419832488,-291.92601801,0.000337,2]
[356412106,1742419832498,-436.33,0.000338,7]
[356412107,1742419832507,-587.0,0.0003412,2]
[356412108,1742419832517,-3227.81267817,0.00034141,6]
[356412109,1742419832527,-3227.81267817,0.00034797,7]
[356412110,1742419832536,-833.92477148,0.00035251,2]
[356412111,1742419832547,-1000.0,0.00035428,2]
[356412112,1742419832556,-3227.81267817,0.00035452,7]
[356412113,1742419832566,-9000.0,0.0003569,120]
[356412114,1742419832576,-500.0,0.0003589,2]
[356412115,1742419832585,-500.0,0.00036099,120]
[356412116,1742419832595,-3227.81267817,0.00036107,7]
[356412117,1742419832605,-624.98,0.00036199,120]
[356412118,1742419832615,-500.0,0.00036761,15]
[356412119,1742419832625,-316.95289012,0.00036761,15]
[356412120,1742419832635,-3227.81267817,0.00036762,7]
[356412121,1742419832644,-1000.0,0.00036797,2]
[356412122,1742419832654,-605.0,0.00036799,2]
[356412123,1742419832663,-3200.49930971,0.00037417,7]
[356412124,1742419832681,-160.0,0.00035235,2]
[356412125,1742419832691,-27.31336846,0.00037417,7]
[356412126,1742419832700,-3227.81267817,0.00038072,8]
[356412127,1742419832710,-1000.0,0.00038166,2]
[356412128,1742419832719,-3227.81267817,0.00038728,8]
[356412129,1742419832729,-500.0,0.00039274,2]
[356412130,1742419832738,-500.0,0.00039274,120]
[356412131,1742419832748,-3227.81267817,0.00039383,8]
[356412132,1742419832758,-500.0,0.00039523,120]
[356412133,1742419832767,-500.0,0.00039523,120]
[356412134,1742419832778,-1000.0,0.0004,120]
[356412135,1742419832790,-1000.0,0.0004,120]
[356412136,1742419832799,-3227.81267817,0.00040038,8]
[356412137,1742419832808,-160.0,0.00040442,3]
[356412138,1742419832819,-118484.676031,0.00040442,3]
[356412139,1742419832828,-3227.81267817,0.00040693,8]
[356412140,1742419832838,-167.95003857,0.00040973,2]
[356412141,1742419832847,-500.0,0.00041073,5]
[356412142,1742419832857,-500.0,0.00041073,5]
[356412143,1742419832867,-500.0,0.00041073,5]
[356412144,1742419832877,-500.0,0.00041073,5]
[356412145,1742419832886,-483.04909173,0.00041073,5]
[356412146,1742419832895,-349.0397524,0.00041073,5]
[356412147,1742419832905,-500.0,0.00041073,5]
[356412148,1742419832914,-639.36149236,0.00041073,5]
[356412149,1742419832924,-500.0,0.00041073,5]
[356412150,1742419832933,-500.0,0.00041073,5]
[356412151,1742419832943,-327.52066194,0.00041073,5]
[356412152,1742419832952,-500.0,0.00041073,5]
[356412153,1742419832962,-236969.352063,0.00041086,3]
[356412154,1742419832972,-833.92477148,0.00041086,3]
[356412155,1742419832982,-3040.6,0.00041095,120]
[356412156,1742419832991,-500.0,0.00041095,120]
[356412157,1742419833001,-100000.0,0.00041096,30]
[356412158,1742419833010,-500.0,0.000411,10]
[356412159,1742419833020,-500.0,0.000411,10]
[356412160,1742419833031,-500.0,0.00041211,2]
[356412161,1742419833040,-3227.81267817,0.00041348,9]
[356412162,1742419833050,-500.0,0.00041437,30]
[356412163,1742419833060,-3040.6,0.00041917,120]
[356412164,1742419833071,-3227.81267817,0.00042003,9]
[356412165,1742419833081,-504.49962027,0.00042026,30]
[356412166,1742419833091,-500.0,0.000423,10]
[356412167,1742419833101,-500.0,0.000423,10]
[356412168,1742419833111,-500.0,0.000423,10]
[356412169,1742419833121,-500.0,0.000423,7]
[356412170,1742419833131,-500.0,0.000423,7]
[356412171,1742419833140,-3227.81267817,0.00042659,9]
[356412172,1742419833150,-363.61,0.000427,14]
[356412173,1742419833159,-3040.6,0.00042739,120]
[356412174,1742419833169,-500.0,0.00042991,30]
[356412175,1742419833179,-500.0,0.00043013,60]
[356412176,1742419833189,-347.51368876,0.00043068,120]
[356412177,1742419833198,-3227.81267817,0.00043314,9]
[356412178,1742419833207,-3040.6,0.00043561,120]
[356412179,1742419833216,-794.67010513,0.00043836,2]
[356412180,1742419833226,-3227.81267817,0.00043969,9]
[356412181,1742419833235,-118484.676031,0.00044099,3]
[356412182,1742419833245,-500.0,0.00044109,120]
[356412183,1742419833255,-3040.6,0.00044383,120]
[356412184,1742419833264,-3227.81267817,0.00044624,10]
[356412185,1742419833274,-500.0,0.00044657,120]
[356412186,1742419833283,-1175.2016078,0.00045136,4]
[356412187,1742419833293,-500.0,0.00045205,120]
[356412188,1742419833303,-500.0,0.00045205,7]
[356412189,1742419833313,-3040.6,0.00045205,120]
[356412190,1742419833322,-3227.81267817,0.00045279,10]
[356412191,1742419833332,-15528.32008758,0.00045456,30]
[356412192,1742419833342,-500.0,0.00045479,8]
[356412193,1742419833352,-2000.0,0.000456,39]
[356412194,1742419833362,-500.0,0.00045753,120]
[356412195,1742419833371,-500.0,0.00045753,9]
[356412196,1742419833382,-3227.81267817,0.00045934,10]
[356412197,1742419833392,-500.0,0.00046027,10]